bitfinex/quotes_BTCUSD_20240828
["timestamp","ask_amount","ask_price","bid_price","bid_amount"]
[1724861239552,0.000738,58866.0,58865.0,1.79162]
[1724861239798,0.000738,58866.0,58865.0,1.80162]
[1724861240054,0.000738,58866.0,58865.0,2.14638]
[1724861240266,0.000738,58866.0,58865.0,1.80662]
[1724861240483,0.000738,58866.0,58865.0,1.81748291]
[1724861240926,0.000738,58866.0,58865.0,1.81248291]
[1724861241882,0.000738,58866.0,58865.0,1.79662]
[1724861242119,0.000738,58866.0,58865.0,1.0841]
[1724861242339,0.000738,58866.0,58865.0,1.42386]
[1724861243367,0.000738,58866.0,58865.0,1.77862]
[1724861243816,0.000738,58866.0,58865.0,1.80162]
[1724861244278,0.000738,58866.0,58865.0,1.80362]
[1724861244522,0.000738,58866.0,58865.0,1.79662]
[1724861244748,0.000738,58866.0,58865.0,1.45686]
[1724861245247,0.000738,58866.0,58865.0,1.79662]
[1724861246001,0.000738,58866.0,58865.0,2.14138]
[1724861246459,0.00082,58872.0,58871.0,1.535762]
[1724861246705,0.04995,58880.0,58871.0,1.535762]
[1724861246706,0.02662011,58884.0,58883.0,0.007]
[1724861246964,0.50540786,58893.0,58892.0,1.333614]
[1724861247190,0.05081969,58911.0,58892.0,1.333614]
[1724861247191,0.05081969,58911.0,58900.0,0.848895]
[1724861247448,0.05081969,58911.0,58900.0,1.212453]
[1724861247664,0.00266549,58914.0,58900.0,1.651011]
[1724861248026,0.00266549,58914.0,58900.0,1.810811]
[1724861248265,0.00266549,58914.0,58900.0,1.465253]
[1724861248266,0.079,58913.0,58900.0,1.465253]
[1724861248768,0.00266549,58914.0,58900.0,1.809811]
[1724861249030,0.00266549,58914.0,58900.0,1.464253]
[1724861249237,0.00266549,58914.0,58900.0,1.808811]
[1724861249476,0.0266067,58912.0,58900.0,1.808811]
[1724861249973,0.0266067,58912.0,58900.0,1.803811]
[1724861250193,0.1066067,58912.0,58900.0,1.454253]
[1724861250412,0.1066067,58912.0,58900.0,0.509337]
[1724861250413,0.0657,58909.0,58900.0,0.509337]
[1724861250638,0.08,58912.0,58900.0,1.188453]
[1724861250859,0.02743218,58901.0,58900.0,1.188453]
[1724861251107,0.000819,58901.0,58900.0,1.614211]
[1724861251356,0.000819,58901.0,58900.0,1.673211]
[1724861251637,0.000819,58901.0,58900.0,1.673251]
[1724861251872,0.000819,58901.0,58900.0,1.812251]
[1724861252095,0.000819,58901.0,58900.0,1.806251]
[1724861252321,0.000819,58901.0,58900.0,0.948935]
[1724861252601,0.000819,58901.0,58900.0,0.509377]
[1724861252882,0.000819,58901.0,58900.0,1.528051]
[1724861253338,0.000819,58901.0,58900.0,1.616251]
[1724861253581,0.000819,58901.0,58900.0,1.680751]
[1724861253799,0.000819,58901.0,58900.0,1.802751]
[1724861254483,0.000819,58901.0,58900.0,1.803751]
[1724861254705,0.000819,58901.0,58900.0,1.802751]
[1724861254928,0.000819,58901.0,58900.0,1.376993]
[1724861255385,0.000819,58901.0,58900.0,1.037435]
[1724861255671,0.000819,58901.0,58900.0,0.948935]
[1724861256346,0.000819,58901.0,58900.0,0.10004]
[1724861256580,0.000819,58901.0,58900.0,0.169819]
[1724861256581,0.078319,58901.0,58900.0,0.169819]
[1724861256805,0.078319,58901.0,58900.0,4e-05]
[1724861257484,0.10493272,58901.0,58900.0,4e-05]
[1724861257994,0.95381272,58901.0,58900.0,4e-05]
[1724861258232,1.40733139,58901.0,58900.0,4e-05]
[1724861258474,0.16813272,58901.0,58900.0,4e-05]
[1724861258702,0.33790872,58901.0,58900.0,4e-05]
[1724861259151,0.16813272,58901.0,58900.0,4e-05]
[1724861259388,0.02743272,58901.0,58900.0,0.848935]
[1724861260076,0.02743272,58901.0,58900.0,0.509377]
[1724861260335,0.02743272,58901.0,58900.0,4e-05]
[1724861260556,0.02743272,58901.0,58900.0,0.169819]
[1724861260779,0.02743272,58901.0,58900.0,0.848935]
[1724861261472,0.02743272,58901.0,58900.0,0.509377]
[1724861261710,0.02743272,58901.0,58900.0,4e-05]
[1724861261942,0.02743272,58901.0,58900.0,0.509377]
[1724861262406,0.02743272,58901.0,58900.0,0.848935]
[1724861262653,0.02743272,58901.0,58900.0,1.272293]
[1724861262875,0.02743272,58901.0,58900.0,1.295293]
[1724861263116,0.02743272,58901.0,58900.0,1.300293]
[1724861263117,0.000819,58901.0,58900.0,1.300293]
[1724861263418,0.000819,58901.0,58900.0,1.804851]
[1724861263661,0.000819,58901.0,58900.0,1.464293]
[1724861264138,0.000819,58901.0,58900.0,0.971935]
[1724861264359,0.000819,58901.0,58900.0,4e-05]
[1724861264605,0.000819,58901.0,58900.0,0.169819]
[1724861265062,0.170595,58901.0,58900.0,4e-05]
[1724861265298,0.077419,58901.0,58900.0,4e-05]
[1724861265517,0.077419,58901.0,58900.0,0.169819]
[1724861265988,0.000819,58901.0,58900.0,0.848935]
[1724861266254,0.000819,58901.0,58900.0,1.254393]
[1724861266722,0.000819,58901.0,58900.0,1.354393]
[1724861266975,0.000819,58901.0,58900.0,1.377393]
[1724861268702,0.000819,58901.0,58900.0,1.311493]
[1724861269158,0.000819,58901.0,58900.0,0.292819]
[1724861269383,0.000819,58901.0,58900.0,4e-05]
[1724861269384,0.076419,58901.0,58900.0,4e-05]
[1724861269855,0.309295,58901.0,58900.0,4e-05]
[1724861270092,0.139519,58901.0,58900.0,4e-05]
[1724861270565,0.139519,58901.0,58900.0,0.169819]
[1724861270794,0.000819,58901.0,58900.0,0.848935]
[1724861271693,0.000819,58901.0,58900.0,0.871935]
[1724861272874,0.000819,58901.0,58900.0,1.211493]
[1724861273115,0.000819,58901.0,58900.0,1.275593]
[1724861273352,0.000819,58901.0,58900.0,1.458693]
[1724861273601,0.000819,58901.0,58900.0,1.803251]
[1724861273823,0.000819,58901.0,58900.0,1.814251]
[1724861274283,0.000819,58901.0,58900.0,1.458693]
[1724861274817,0.000819,58901.0,58900.0,0.632377]
[1724861275285,0.000819,58901.0,58900.0,0.971935]
[1724861275502,0.000819,58901.0,58900.0,0.169819]
[1724861275733,0.000819,58901.0,58900.0,0.509377]
[1724861276197,0.000819,58901.0,58900.0,4e-05]
[1724861276440,0.000819,58901.0,58900.0,0.169819]
[1724861276896,0.000819,58901.0,58900.0,0.509377]
[1724861277343,0.000819,58901.0,58900.0,0.169819]
[1724861277810,1.329051,58901.0,58900.0,4e-05]
[1724861278258,1.668603,58901.0,58900.0,4e-05]
[1724861278838,1.668603,58901.0,58884.0,0.0009009]
[1724861278839,0.927412,58885.0,58884.0,0.0009009]
[1724861279086,0.650567,58885.0,58884.0,0.0009009]
[1724861279313,0.1411,58885.0,58884.0,0.0009009]
[1724861279569,0.1388,58890.0,58888.0,0.169812]
[1724861279789,0.30861,58890.0,58884.0,0.0009009]
[1724861280011,0.0777,58890.0,58889.0,0.169811]
[1724861280256,0.0266201,58890.0,58889.0,0.509433]
[1724861280478,0.0266201,58890.0,58889.0,0.928355]
[1724861280686,0.0266201,58890.0,58889.0,0.872055]
[1724861281320,0.0266201,58890.0,58889.0,0.532433]
[1724861281788,0.000819,58901.0,58892.0,0.339601]
[1724861282009,0.169779,58900.0,58895.0,0.169792]
[1724861282253,0.02743674,58901.0,58896.0,0.339581]
[1724861282501,0.02743674,58901.0,58899.0,0.169781]
[1724861282958,0.02743674,58901.0,58890.0,0.339611]
[1724861283179,0.02743674,58901.0,58884.0,0.0009009]
[1724861283180,0.169794,58895.0,58894.0,0.0002044]
[1724861283422,0.339565,58899.0,58894.0,0.0002044]
[1724861283650,0.169793,58896.0,58894.0,0.0002044]
[1724861283908,0.02743674,58901.0,58894.0,0.0002044]
[1724861283909,0.59158,58895.0,58894.0,0.0002044]
[1724861284129,0.65638,58895.0,58894.0,0.0002044]
[1724861284382,0.147,58895.0,58894.0,0.0002044]
[1724861284607,0.0784,58900.0,58894.0,0.0002044]
[1724861284840,0.339565,58899.0,58894.0,0.0002044]
[1724861285088,0.02661742,58895.0,58894.0,0.0002044]
[1724861285799,0.19641042,58895.0,58894.0,0.0002044]
[1724861286021,1.00528196,58895.0,58894.0,0.0002044]
[1724861286235,1.07339847,58895.0,58894.0,0.0002044]
[1724861286528,1.24319147,58895.0,58894.0,0.0002044]
[1724861286755,0.339567,58899.0,58863.0,4e-05]
[1724861286756,0.849112,58885.0,58863.0,4e-05]
[1724861286985,1.333757,58885.0,58863.0,4e-05]
[1724861287204,1.773402,58885.0,58866.0,0.169875]
[1724861287441,1.773402,58885.0,58863.0,4e-05]
[1724861287696,1.774402,58885.0,58863.0,4e-05]
[1724861287946,1.80102976,58885.0,58863.0,4e-05]
[1724861288404,2.3092264,58885.0,58863.0,4e-05]
[1724861288637,0.25132548,58864.0,58863.0,4e-05]
[1724861288876,0.0819,58864.0,58863.0,4e-05]
[1724861289317,0.339727,58871.0,58864.0,0.169881]
[1724861289318,0.0788,58869.0,58864.0,0.169881]
[1724861289543,0.0788,58869.0,58863.0,4e-05]
[1724861289756,0.02663105,58864.0,58863.0,0.339812]
[1724861289992,0.02663105,58864.0,58863.0,0.169926]
[1724861290272,0.02663105,58864.0,58863.0,0.509698]
[1724861290490,0.02663105,58864.0,58863.0,0.93717]
[1724861290715,0.02663105,58864.0,58863.0,0.574398]
[1724861290963,0.02663105,58864.0,58863.0,0.84947]
[1724861291441,0.02663105,58864.0,58863.0,0.169926]
[1724861291690,0.02663105,58864.0,58863.0,0.509698]
[1724861291892,0.02663105,58864.0,58863.0,1.189242]
[1724861292118,0.02663105,58864.0,58863.0,1.212242]
[1724861292851,0.02663105,58864.0,58863.0,1.288942]
[1724861293313,0.02663105,58864.0,58863.0,1.388942]
[1724861293563,0.50540786,58881.0,58880.0,0.509509]
[1724861294014,0.339589,58895.0,58868.0,0.33974]
[1724861294015,0.419983,58896.0,58881.0,0.339663]
[1724861294259,0.419983,58896.0,58874.0,0.0764]
[1724861294260,0.169806,58891.0,58874.0,0.0764]
[1724861294487,0.02662335,58884.0,58883.0,0.169828]
[1724861294707,0.0606,58895.0,58883.0,0.169828]
[1724861294708,0.0606,58895.0,58891.0,0.169802]
[1724861294926,0.0606,58895.0,58890.0,0.169805]
[1724861295144,0.0606,58895.0,58881.0,0.066]
[1724861295427,0.02661913,58895.0,58882.0,0.02639586]
[1724861295650,0.19641413,58895.0,58891.0,0.169804]
[1724861296337,0.02661913,58895.0,58892.0,0.169801]
[1724861296572,0.02661913,58895.0,58894.0,0.509389]
[1724861296793,0.02661913,58895.0,58894.0,0.848982]
[1724861297036,0.02661913,58895.0,58893.0,0.169798]
[1724861297516,0.02661913,58895.0,58890.0,0.339615]
[1724861297743,0.02661913,58895.0,58892.0,0.169801]
[1724861298245,0.02661913,58895.0,58886.0,0.339635]
[1724861298462,0.02661913,58895.0,58885.0,0.339644]
[1724861298678,0.02661913,58895.0,58892.0,0.169801]
[1724861298943,0.02661913,58895.0,58890.0,0.339613]
[1724861298944,0.02661913,58895.0,58890.0,0.169807]
[1724861299188,0.169837,58880.0,58875.0,0.169849]
[1724861299439,0.417565,58882.0,58870.0,0.1]
[1724861299683,0.417565,58882.0,58869.0,0.1421]
[1724861299684,0.407565,58882.0,58874.0,0.339706]
[1724861299897,0.02662418,58880.0,58871.0,0.1]
[1724861300115,0.02662418,58880.0,58873.0,0.339711]
[1724861300344,0.02662418,58880.0,58879.0,0.169839]
[1724861300572,0.02662418,58880.0,58871.0,0.1]
[1724861300810,0.169843,58878.0,58874.0,0.169852]
[1724861301027,0.169843,58878.0,58871.0,0.169861]
[1724861301028,0.339691,58878.0,58871.0,0.169861]
[1724861301271,0.339695,58877.0,58871.0,0.169861]
[1724861301489,0.169851,58875.0,58871.0,0.169861]
[1724861302015,0.33968,58879.0,58865.0,0.339759]
[1724861302242,0.0774,58874.0,58863.0,4e-05]
[1724861302479,0.169881,58865.0,58863.0,4e-05]
[1724861302748,0.399815,58873.0,58863.0,4e-05]
[1724861302749,0.247283,58864.0,58863.0,4e-05]
[1724861302973,0.926815,58864.0,58863.0,4e-05]
[1724861303703,1.326681,58864.0,58863.0,4e-05]
[1724861307400,0.1375,58864.0,58863.0,4e-05]
[1724861307622,0.307383,58864.0,58863.0,4e-05]
[1724861308117,0.1375,58864.0,58863.0,4e-05]
[1724861308364,0.02663134,58865.0,58863.0,4e-05]
[1724861308582,0.02663134,58865.0,58864.0,0.849415]
[1724861308805,0.02663134,58865.0,58864.0,0.872415]
[1724861309037,0.02663134,58865.0,58863.0,4e-05]
[1724861309273,0.02663134,58865.0,58863.0,0.169924]
[1724861309497,0.02663134,58865.0,58864.0,0.509649]
[1724861310179,0.02663134,58865.0,58864.0,0.169883]
[1724861310399,0.02663134,58865.0,58864.0,0.509649]
[1724861310620,0.02663134,58865.0,58864.0,0.911315]
[1724861310879,0.02663134,58865.0,58864.0,0.594549]
[1724861311146,0.02663134,58865.0,58863.0,4e-05]
[1724861311392,0.02663134,58865.0,58864.0,0.509649]
[1724861312074,0.02663134,58865.0,58864.0,0.532649]
[1724861312739,0.02663134,58865.0,58864.0,0.0238998]
[1724861312954,0.19651134,58865.0,58864.0,0.0008998]
[1724861313169,0.27861134,58865.0,58864.0,0.0008998]
[1724861313607,0.10873134,58865.0,58864.0,0.0008998]
[1724861313817,0.02663134,58865.0,58864.0,0.0008998]
[1724861314059,0.53627134,58865.0,58864.0,0.0008998]
[1724861314519,0.87603134,58865.0,58864.0,0.0008998]
[1724861314771,1.35869134,58865.0,58864.0,0.0008998]
[1724861315044,1.44629447,58865.0,58864.0,0.0008998]
[1724861315262,1.35869134,58865.0,58864.0,0.0008998]
[1724861315501,1.01893134,58865.0,58864.0,0.0008998]
[1724861315729,0.67917134,58865.0,58864.0,0.0008998]
[1724861316192,0.02663134,58865.0,58864.0,0.1707828]
[1724861316858,0.02663134,58865.0,58864.0,0.0008998]
[1724861317096,0.19651134,58865.0,58864.0,0.0008998]
[1724861317539,0.53627134,58865.0,58864.0,0.0008998]
[1724861318246,1.21579134,58865.0,58864.0,0.0008998]
[1724861318490,1.38559277,58865.0,58864.0,0.0008998]
[1724861319019,1.72535277,58865.0,58864.0,0.0008998]
[1724861319458,1.52884143,58865.0,58864.0,0.0008998]
[1724861319676,1.78685663,58865.0,58864.0,0.0008998]
[1724861319907,1.79751634,58865.0,58864.0,0.0008998]
[1724861320146,1.37015491,58865.0,58864.0,0.0008998]
[1724861321086,1.70991491,58865.0,58864.0,0.0008998]
[1724861321330,2.16667491,58865.0,58864.0,0.0008998]
[1724861321555,2.24243749,58865.0,58864.0,0.0008998]
[1724861321770,2.16667491,58865.0,58864.0,0.0008998]
[1724861321988,2.33522655,58865.0,58864.0,0.0008998]
[1724861322234,1.608903,58854.0,58853.0,0.000902]
[1724861322474,1.607903,58854.0,58853.0,0.000902]
[1724861322710,2.046726,58854.0,58853.0,0.000902]
[1724861322951,1.90309796,58854.0,58853.0,0.000902]
[1724861323188,1.96789796,58854.0,58853.0,0.000902]
[1724861323420,1.79834632,58854.0,58853.0,0.000902]
[1724861323950,0.27425432,58854.0,58853.0,0.000902]
[1724861324159,0.02664332,58854.0,58853.0,0.000902]
[1724861324592,0.02664332,58854.0,58853.0,0.170816]
[1724861324817,0.02664332,58854.0,58853.0,0.000902]
[1724861325070,0.02664332,58854.0,58853.0,0.170816]
[1724861325366,0.02664332,58854.0,58853.0,0.000902]
[1724861326074,0.53637732,58854.0,58853.0,0.000902]
[1724861326813,0.19655432,58854.0,58853.0,0.000902]
[1724861327049,0.02664332,58854.0,58853.0,0.000902]
[1724861328708,0.02664332,58854.0,58853.0,0.510645]
[1724861328961,0.02664332,58854.0,58853.0,0.000902]
[1724861329947,0.27695432,58854.0,58853.0,0.000902]
[1724861330193,0.98429575,58854.0,58853.0,0.000902]
[1724861330448,0.95660032,58854.0,58853.0,0.000902]
[1724861330695,0.53637732,58854.0,58853.0,0.000902]
[1724861331179,1.21602332,58854.0,58853.0,0.000902]
[1724861331729,2.14096932,58854.0,58853.0,0.000902]
[1724861331985,2.30952096,58854.0,58853.0,0.000902]
[1724861332226,2.68737823,58854.0,58853.0,0.000902]
[1724861332466,2.68837823,58854.0,58853.0,0.000902]
[1724861332716,2.74982274,58854.0,58853.0,0.000902]
[1724861332974,2.69930182,58854.0,58853.0,0.000902]
[1724861333216,2.80034367,58854.0,58853.0,0.000902]
[1724861333484,2.69930182,58854.0,58853.0,0.000902]
[1724861334190,2.33644455,58854.0,58853.0,0.000902]
[1724861334438,2.67626755,58854.0,58853.0,0.000902]
[1724861334694,2.67626755,58854.0,58836.0,0.00151257]
[1724861334695,1.567749,58837.0,58836.0,0.00151257]
[1724861335197,1.667749,58837.0,58836.0,0.00151257]
[1724861335431,2.03432166,58837.0,58836.0,0.00151257]
[1724861335668,2.09942166,58837.0,58836.0,0.00151257]
[1724861335898,2.14992316,58837.0,58836.0,0.00151257]
[1724861336133,2.3184748,58837.0,58836.0,0.00151257]
[1724861336369,1.535725,58834.0,58833.0,0.009038]
[1724861336631,1.718825,58834.0,58833.0,4e-05]
[1724861336859,2.24752593,58834.0,58833.0,1e-08]
[1724861337350,2.24752593,58834.0,58812.0,0.008998]
[1724861337351,0.170013,58819.0,58812.0,0.008998]
[1724861337603,1.338491,58819.0,58812.0,0.008998]
[1724861337859,1.9123661,58819.0,58812.0,0.008998]
[1724861338095,1.9921263,58819.0,58812.0,0.008998]
[1724861338341,1.5122512,58819.0,58812.0,0.008998]
[1724861338579,1.31654413,58819.0,58812.0,0.008998]
[1724861339793,0.97651813,58819.0,58812.0,0.008998]
[1724861340334,1.31654413,58819.0,58812.0,0.008998]
[1724861340578,1.39614413,58819.0,58812.0,0.008998]
[1724861340813,1.53675854,58819.0,58812.0,0.008998]
[1724861341303,1.87678454,58819.0,58812.0,0.008998]
[1724861341537,1.53675854,58819.0,58812.0,0.008998]
[1724861341807,1.45714413,58819.0,58812.0,0.008998]
[1724861342048,1.05611813,58819.0,58812.0,0.008998]
[1724861342767,1.39614413,58819.0,58818.0,0.00512387]
[1724861343020,1.40713118,58819.0,58818.0,0.00516387]
[1724861343254,1.55724559,58819.0,58818.0,0.00516387]
[1724861343509,1.55724559,58819.0,58812.0,0.008998]
[1724861343510,0.35006,58813.0,58812.0,0.008998]
[1724861343743,0.35006,58813.0,58804.0,0.008998]
[1724861343744,0.59386,58805.0,58804.0,0.008998]
[1724861344006,1.714181,58805.0,58804.0,0.008998]
[1724861344237,1.79287289,58805.0,58804.0,0.008998]
[1724861344704,1.40073932,58805.0,58804.0,0.008998]
[1724861345430,1.39573932,58805.0,58804.0,0.008998]
[1724861345687,1.58783982,58805.0,58804.0,0.008998]
[1724861345924,1.92794682,58805.0,58804.0,0.008998]
[1724861346185,2.00034682,58805.0,58804.0,0.008998]
[1724861346413,2.01101101,58805.0,58804.0,0.008998]
[1724861346650,2.01201101,58805.0,58804.0,0.008998]
[1724861347182,1.12869651,58805.0,58804.0,0.008998]
[1724861347411,0.02666532,58805.0,58804.0,0.089898]
[1724861347679,0.19671832,58805.0,58804.0,0.089898]
[1724861347903,0.53682532,58805.0,58804.0,0.008998]
[1724861348148,0.89660415,58805.0,58804.0,0.008998]
[1724861348601,0.53682532,58805.0,58804.0,0.008998]
[1724861348824,0.87693232,58805.0,58804.0,0.008998]
[1724861349605,0.53682532,58805.0,58804.0,0.008998]
[1724861350092,0.19671832,58805.0,58804.0,0.008998]
[1724861350349,0.53682532,58805.0,58804.0,0.008998]
[1724861350611,0.08034785,58805.0,58804.0,0.008998]
[1724861350855,0.08034785,58805.0,58804.0,0.623066]
[1724861350856,0.02666532,58805.0,58804.0,0.623066]
[1724861351100,0.02666532,58805.0,58804.0,0.089898]
[1724861351354,0.02666532,58805.0,58804.0,0.259954]
[1724861351582,0.02666532,58805.0,58804.0,0.600066]
[1724861351830,0.02666532,58805.0,58804.0,0.259954]
[1724861352077,0.02666532,58805.0,58804.0,0.963178]
[1724861352311,0.02666532,58805.0,58804.0,0.686566]
[1724861352550,0.02666532,58805.0,58804.0,0.346454]
[1724861352765,0.02666532,58805.0,58804.0,0.686566]
[1724861353487,0.02666532,58805.0,58804.0,0.346454]
[1724861353937,0.02666532,58805.0,58804.0,1.026678]
[1724861354172,0.02666532,58805.0,58804.0,1.364153]
[1724861354914,0.02666532,58805.0,58804.0,1.705265]
[1724861355181,0.02666532,58805.0,58804.0,1.805265]
[1724861355414,0.000819,58819.0,58818.0,0.91472278]
[1724861355632,0.000819,58819.0,58818.0,1.33925378]
[1724861355876,0.000819,58819.0,58818.0,0.99922278]
[1724861356104,0.000819,58819.0,58818.0,1.33925378]
[1724861356854,0.000819,58819.0,58818.0,0.99922278]
[1724861357325,0.000819,58819.0,58818.0,1.33925378]
[1724861358669,0.02746692,58819.0,58818.0,1.33925378]
[1724861360146,0.02746692,58819.0,58818.0,0.63619178]
[1724861360368,0.02746692,58819.0,58818.0,0.97622278]
[1724861361125,0.02746692,58819.0,58818.0,0.1396]
[1724861361396,0.340069,58812.0,58805.0,0.1431]
[1724861361625,0.0340069,58811.0,58805.0,0.483206]
[1724861361881,0.170003,58809.0,58805.0,0.313152]
[1724861362135,0.02665592,58812.0,58804.0,0.006361]
[1724861362388,0.170047,58808.0,58804.0,0.006361]
[1724861362606,0.19668992,58812.0,58807.0,0.170046]
[1724861362844,0.340074,58811.0,58804.0,0.006361]
[1724861363067,0.02665592,58812.0,58807.0,0.170045]
[1724861363318,0.36672392,58812.0,58804.0,0.006361]
[1724861363569,0.02665592,58812.0,58805.0,0.14290088]
[1724861363791,0.02665592,58812.0,58811.0,0.510108]
[1724861364016,0.02665592,58812.0,58811.0,0.533108]
[1724861364243,0.02665592,58812.0,58805.0,0.1395]
[1724861364500,0.02665592,58812.0,58808.0,0.170043]
[1724861364741,0.19668992,58812.0,58808.0,0.170043]
[1724861364982,0.170039,58810.0,58806.0,0.193049]
[1724861365230,0.02665592,58812.0,58807.0,0.340091]
[1724861365484,0.02665592,58812.0,58808.0,0.363086]
[1724861365712,0.17003,58813.0,58809.0,0.170039]
[1724861365964,0.510126,58809.0,58808.0,0.023]
[1724861366219,0.340095,58807.0,58804.0,0.006361]
[1724861366463,0.170045,58808.0,58804.0,0.176415]
[1724861366687,0.340079,58810.0,58805.0,0.170053]
[1724861366937,0.170044,58809.0,58805.0,0.170053]
[1724861367167,0.170044,58809.0,58804.0,0.346468]
[1724861367168,0.02665771,58809.0,58804.0,0.346468]
[1724861367389,0.02665771,58809.0,58808.0,0.170044]
[1724861367619,0.02665771,58809.0,58805.0,0.363106]
[1724861367620,0.02665771,58809.0,58806.0,0.170049]
[1724861367876,0.02665771,58809.0,58807.0,0.170046]
[1724861368097,0.02665771,58809.0,58805.0,0.193053]
[1724861368349,0.170053,58805.0,58804.0,0.006361]
[1724861368610,0.51016,58805.0,58804.0,0.006361]
[1724861368835,1.01875797,58805.0,58804.0,0.006361]
[1724861369090,0.67865097,58805.0,58804.0,0.006361]
[1724861369849,1.01875797,58805.0,58804.0,0.006361]
[1724861370363,0.02665771,58809.0,58804.0,0.006361]
[1724861370364,0.36674171,58809.0,58804.0,0.006361]
[1724861370589,0.36674171,58809.0,58807.0,0.170047]
[1724861370590,0.02665771,58809.0,58807.0,0.170047]
[1724861370812,0.02665771,58809.0,58808.0,0.170044]
[1724861371044,0.02665771,58809.0,58808.0,0.595333]
[1724861371293,0.02665771,58809.0,58808.0,0.0852]
[1724861371541,0.02665771,58809.0,58808.0,0.255244]
[1724861371797,0.02665771,58809.0,58808.0,0.595333]
[1724861372020,0.02665771,58809.0,58808.0,0.935422]
[1724861372488,0.02665771,58809.0,58808.0,0.595333]
[1724861372736,0.02665771,58809.0,58808.0,0.255244]
[1724861372977,0.02665771,58809.0,58808.0,0.0852]
[1724861373202,0.02665771,58809.0,58808.0,0.023]
[1724861373418,0.08033318,58809.0,58804.0,0.006361]
[1724861373633,0.17005,58806.0,58805.0,0.023]
[1724861373891,0.17005,58806.0,58804.0,0.006361]
[1724861373892,0.170053,58805.0,58804.0,0.006361]
[1724861374115,0.340092,58808.0,58804.0,0.006361]
[1724861374116,0.170045,58808.0,58804.0,0.006361]
[1724861374333,0.170045,58808.0,58804.0,0.176417]
[1724861374548,0.34009,58808.0,58804.0,0.006361]
[1724861374788,0.170052,58806.0,58804.0,0.006361]
[1724861375018,0.340085,58809.0,58804.0,0.006361]
[1724861375262,0.170048,58807.0,58804.0,0.006361]
[1724861375465,0.340072,58811.0,58804.0,0.0240031]
[1724861375725,0.170045,58808.0,58804.0,0.006361]
[1724861375930,0.170045,58808.0,58804.0,0.176416]
[1724861376154,0.0816,58815.0,58804.0,0.006361]
[1724861376548,0.170046,58808.0,58804.0,0.006361]
[1724861376788,0.170053,58805.0,58804.0,0.006361]
[1724861377000,0.0816,58815.0,58804.0,0.006361]
[1724861377244,0.340095,58808.0,58804.0,0.006361]
[1724861377424,0.0638,58809.0,58804.0,0.006361]
[1724861377425,0.51016,58805.0,58804.0,0.006361]
[1724861377715,0.907663,58805.0,58804.0,0.006361]
[1724861377957,0.925467,58805.0,58804.0,0.006361]
[1724861378211,0.53681944,58805.0,58804.0,0.006361]
[1724861378432,0.02665944,58805.0,58804.0,0.539529]
[1724861378919,0.02665944,58805.0,58804.0,0.199417]
[1724861379147,0.02665944,58805.0,58804.0,0.006361]
[1724861379394,0.53681944,58805.0,58804.0,0.006361]
[1724861379610,0.53661481,58805.0,58804.0,0.006361]
[1724861380075,0.87672181,58805.0,58804.0,0.006361]
[1724861380293,0.53661481,58805.0,58804.0,0.006361]
[1724861380770,0.95192181,58805.0,58804.0,0.006361]
[1724861381793,0.53661481,58805.0,58804.0,0.006361]
[1724861382479,0.87672181,58805.0,58804.0,0.006361]
[1724861382706,0.53661481,58805.0,58804.0,0.006361]
[1724861382930,0.87672181,58805.0,58804.0,0.006361]
[1724861383142,0.53661481,58805.0,58804.0,0.006361]
[1724861383358,0.87672181,58805.0,58804.0,0.006361]
[1724861383815,0.99123642,58805.0,58804.0,0.006361]
[1724861384110,1.35670073,58805.0,58804.0,0.006361]
[1724861384342,2.29140875,58805.0,58804.0,0.006361]
[1724861384853,2.50039529,58805.0,58804.0,0.006361]
[1724861385099,2.50075978,58805.0,58804.0,0.006361]
[1724861385344,2.66931142,58805.0,58804.0,0.006361]
[1724861385809,2.98226739,58805.0,58804.0,0.006361]
[1724861386035,2.47360875,58805.0,58804.0,0.006361]
[1724861386284,2.58990699,58805.0,58804.0,0.006361]
[1724861386528,2.47382453,58805.0,58804.0,0.006361]
[1724861387200,2.81493153,58805.0,58804.0,0.006361]
[1724861387922,2.81393153,58805.0,58804.0,0.006361]
[1724861388154,2.98248317,58805.0,58804.0,0.006361]
[1724861388388,2.64237617,58805.0,58804.0,0.006361]
[1724861388674,2.47382453,58805.0,58804.0,0.006361]
[1724861389365,2.46282881,58805.0,58804.0,0.006361]
[1724861389622,1.76363337,58805.0,58804.0,0.006361]
[1724861389858,2.00374037,58805.0,58804.0,0.006361]
[1724861390332,1.66363337,58805.0,58804.0,0.006361]
[1724861390567,0.87672181,58805.0,58804.0,0.006361]
[1724861391011,1.35129335,58805.0,58804.0,0.006361]
[1724861391244,1.21682881,58805.0,58804.0,0.006361]
[1724861391752,0.87672181,58805.0,58804.0,0.006361]
[1724861391973,0.63822133,58805.0,58804.0,0.006361]
[1724861392423,0.97832833,58805.0,58804.0,0.006361]
[1724861392644,0.63822133,58805.0,58804.0,0.006361]
[1724861392871,0.10267909,58805.0,58804.0,0.678829]
[1724861393098,0.27273209,58805.0,58804.0,0.168661]
[1724861393321,0.170053,58805.0,58804.0,0.145661]
[1724861393536,0.170053,58805.0,58804.0,0.006361]
[1724861393803,0.51016,58805.0,58804.0,0.006361]
[1724861394064,0.850267,58805.0,58804.0,0.006361]
[1724861394300,1.265874,58805.0,58804.0,0.006361]
[1724861394825,1.65682296,58805.0,58804.0,0.006361]
[1724861395123,1.70758752,58805.0,58804.0,0.006361]
[1724861395343,1.705981,58805.0,58804.0,0.006361]
[1724861395612,1.87453264,58805.0,58804.0,0.006361]
[1724861395855,1.87553264,58805.0,58804.0,0.006361]
[1724861396080,1.87453264,58805.0,58804.0,0.006361]
[1724861397839,2.21663964,58805.0,58804.0,0.006361]
[1724861398312,2.58862765,58805.0,58804.0,0.006361]
[1724861398542,1.608115,58796.0,58795.0,0.00646545]
[1724861398763,1.79884431,58796.0,58795.0,0.00646545]
[1724861398991,1.77342481,58796.0,58795.0,0.00646545]
[1724861400242,1.29226581,58796.0,58795.0,0.00646545]
[1724861400726,1.30310396,58796.0,58795.0,0.00646545]
[1724861401180,1.4716556,58796.0,58795.0,0.00646545]